[Event "*** Titled Tuesday Blitz"]
[Site "Chess.com"]
[Date "2020.12.29"]
[Round "11"]
[White "RobertoJBM"]
[Black "ferdipy"]
[Result "1-0"]
[WhiteElo "2667"]
[BlackElo "2209"]
[TimeControl "180+1"]
[EndTime "12:07:46 PST"]
[Termination "RobertoJBM won on time"]

1. g4 {[%clk 0:02:46.9]} 1... c5 {[%clk 0:02:59.7]} 2. Bg2 {[%clk 0:02:46.1]}
2... Nc6 {[%clk 0:03:00.2]} 3. d3 {[%clk 0:02:42.8]} 3... g6 {[%clk 0:03:00.6]}
4. h3 {[%clk 0:02:43]} 4... Bg7 {[%clk 0:03:00.3]} 5. Nc3 {[%clk 0:02:43.9]}
5... e5 {[%clk 0:03:00.5]} 6. e4 {[%clk 0:02:43.9]} 6... Nge7 {[%clk 0:03:00.8]}
7. Be3 {[%clk 0:02:43.6]} 7... d6 {[%clk 0:03:00.5]} 8. Qd2 {[%clk 0:02:43.3]}
8... Nd4 {[%clk 0:02:59.4]} 9. Nce2 {[%clk 0:02:42.5]} 9... h6 {[%clk
0:02:57.9]} 10. c3 {[%clk 0:02:41.3]} 10... Ndc6 {[%clk 0:02:56.5]} 11. f4
{[%clk 0:02:40.1]} 11... exf4 {[%clk 0:02:53.4]} 12. Bxf4 {[%clk 0:02:39.4]}
12... Be6 {[%clk 0:02:53.3]} 13. Nf3 {[%clk 0:02:38.7]} 13... d5 {[%clk
0:02:50.2]} 14. e5 {[%clk 0:02:36.2]} 14... d4 {[%clk 0:02:45.2]} 15. Bg3 {[%clk
0:02:33.2]} 15... dxc3 {[%clk 0:02:41]} 16. bxc3 {[%clk 0:02:31.9]} 16... Nd5
{[%clk 0:02:34.4]} 17. O-O {[%clk 0:02:29.3]} 17... O-O {[%clk 0:02:33.2]} 18.
Rae1 {[%clk 0:02:25]} 18... Qd7 {[%clk 0:02:32.3]} 19. Nf4 {[%clk 0:02:19.2]}
19... Nxf4 {[%clk 0:02:29.9]} 20. Bxf4 {[%clk 0:02:20.1]} 20... Kh7 {[%clk
0:02:30.2]} 21. g5 {[%clk 0:02:11.4]} 21... h5 {[%clk 0:02:29]} 22. h4 {[%clk
0:02:11]} 22... Rfd8 {[%clk 0:02:27.8]} 23. Rd1 {[%clk 0:02:09.4]} 23... Rac8
{[%clk 0:02:25.4]} 24. Rfe1 {[%clk 0:02:09]} 24... Bg4 {[%clk 0:02:23]} 25. Qe3
{[%clk 0:02:05.4]} 25... b6 {[%clk 0:02:22]} 26. Rd2 {[%clk 0:02:03.8]} 26...
Ne7 {[%clk 0:02:21.5]} 27. Nh2 {[%clk 0:01:53.9]} 27... Be6 {[%clk 0:02:15.8]}
28. d4 {[%clk 0:01:52.9]} 28... cxd4 {[%clk 0:02:11.5]} 29. cxd4 {[%clk
0:01:52.1]} 29... Nd5 {[%clk 0:02:10.5]} 30. Qg3 {[%clk 0:01:50.7]} 30... Rc3
{[%clk 0:02:08.5]} 31. Qf2 {[%clk 0:01:42.4]} 31... Bh3 {[%clk 0:02:00.5]} 32.
Be4 {[%clk 0:01:36.1]} 32... Bf5 {[%clk 0:01:54.7]} 33. Bg2 {[%clk 0:01:34.1]}
33... Rdc8 {[%clk 0:01:53.7]} 34. Nf1 {[%clk 0:01:31.7]} 34... Nb4 {[%clk
0:01:51.7]} 35. Re3 {[%clk 0:01:25.7]} 35... Rxe3 {[%clk 0:01:19.9]} 36. Nxe3
{[%clk 0:01:23.6]} 36... Nd3 {[%clk 0:01:17.6]} 37. Qg3 {[%clk 0:01:21.3]} 37...
Rc3 {[%clk 0:01:07.9]} 38. Nd5 {[%clk 0:01:06.4]} 38... Rc1+ {[%clk 0:01:00.5]}
39. Kh2 {[%clk 0:01:04.7]} 39... Nxf4 {[%clk 0:00:57.4]} 40. Qxf4 {[%clk
0:01:01.8]} 40... Rc4 {[%clk 0:00:40.5]} 41. Ne3 {[%clk 0:00:48.2]} 41... Ra4
{[%clk 0:00:35.2]} 42. Nxf5 {[%clk 0:00:45.7]} 42... Qxf5 {[%clk 0:00:35]} 43.
Qxf5 {[%clk 0:00:44.7]} 43... gxf5 {[%clk 0:00:35.9]} 44. Kg3 {[%clk 0:00:40.5]}
44... Kg6 {[%clk 0:00:31.1]} 45. Kf4 {[%clk 0:00:36.7]} 45... Bf8 {[%clk
0:00:29.3]} 46. Bh3 {[%clk 0:00:35.6]} 46... Bc5 {[%clk 0:00:28]} 47. Bxf5+
{[%clk 0:00:36.5]} 47... Kg7 {[%clk 0:00:28.5]} 48. Ke4 {[%clk 0:00:36.8]} 48...
b5 {[%clk 0:00:23.6]} 49. Kd5 {[%clk 0:00:31.8]} 49... Bb6 {[%clk 0:00:22.4]}
50. Bd7 {[%clk 0:00:29.7]} 50... Rb4 {[%clk 0:00:20.8]} 51. Bf5 {[%clk 0:00:21]}
51... a5 {[%clk 0:00:21]} 52. Be4 {[%clk 0:00:21]} 52... a4 {[%clk 0:00:19.7]}
53. Bf3 {[%clk 0:00:21]} 53... Rb1 {[%clk 0:00:19.2]} 54. Bxh5 {[%clk
0:00:20.6]} 54... Rb4 {[%clk 0:00:18.9]} 55. Be2 {[%clk 0:00:20]} 55... Rb1
{[%clk 0:00:17.8]} 56. h5 {[%clk 0:00:17.9]} 56... Rg1 {[%clk 0:00:17.7]} 57. g6
{[%clk 0:00:16.3]} 57... fxg6 {[%clk 0:00:17.5]} 58. hxg6 {[%clk 0:00:16.8]}
58... Rxg6 {[%clk 0:00:16.7]} 59. Bxb5 {[%clk 0:00:16.9]} 59... a3 {[%clk
0:00:13.7]} 60. Bc4 {[%clk 0:00:14.2]} 60... Rg4 {[%clk 0:00:13.3]} 61. Bb3
{[%clk 0:00:13.8]} 61... Kf8 {[%clk 0:00:12.8]} 62. Kc4 {[%clk 0:00:12.5]} 62...
Ke7 {[%clk 0:00:12.7]} 63. Rd3 {[%clk 0:00:12.3]} 63... Rf4 {[%clk 0:00:12.3]}
64. Bd1 {[%clk 0:00:12.4]} 64... Bc7 {[%clk 0:00:11.3]} 65. Kc5 {[%clk
0:00:10.4]} 65... Bb8 {[%clk 0:00:11]} 66. Rxa3 {[%clk 0:00:10.1]} 66... Rf1
{[%clk 0:00:07.4]} 67. Be2 {[%clk 0:00:09.1]} 67... Re1 {[%clk 0:00:07.5]} 68.
Bc4 {[%clk 0:00:09.3]} 68... Rc1 {[%clk 0:00:07.6]} 69. Rh3 {[%clk 0:00:09]}
69... Bc7 {[%clk 0:00:06.5]} 70. Rh7+ {[%clk 0:00:08.5]} 70... Kd8 {[%clk
0:00:07]} 71. e6 {[%clk 0:00:08.5]} 71... Re1 {[%clk 0:00:05.6]} 72. d5 {[%clk
0:00:08.7]} 72... Be5 {[%clk 0:00:04.7]} 73. d6 {[%clk 0:00:05.9]} 73... Ke8
{[%clk 0:00:02.5]} 74. Bb5+ {[%clk 0:00:05.3]} 74... Kd8 {[%clk 0:00:02.4]} 75.
Rd7+ {[%clk 0:00:05.3]} 75... Kc8 {[%clk 0:00:02.4]} 76. e7 {[%clk 0:00:06.2]}
76... Bf6 {[%clk 0:00:01.5]} 77. Rd8+ {[%clk 0:00:05.5]} 77... Kb7 {[%clk
0:00:01.6]} 78. e8=Q {[%clk 0:00:06.4]} 1-0

[Event "*** Titled Tuesday Blitz"]
[Site "Chess.com"]
[Date "2020.12.29"]
[Round "11"]
[White "andriipalchuk"]
[Black "goldenpuppy"]
[Result "1-0"]
[WhiteElo "2497"]
[BlackElo "2382"]
[TimeControl "180+1"]
[EndTime "12:08:22 PST"]
[Termination "andriipalchuk won by resignation"]

1. e4 {[%clk 0:03:00.9]} 1... c6 {[%clk 0:02:59.3]} 2. d4 {[%clk 0:02:58.8]}
2... d5 {[%clk 0:02:59.6]} 3. exd5 {[%clk 0:02:59.7]} 3... cxd5 {[%clk
0:02:59.3]} 4. Bd3 {[%clk 0:03:00.4]} 4... Nc6 {[%clk 0:02:59.2]} 5. c3 {[%clk
0:03:01.1]} 5... Nf6 {[%clk 0:02:42.7]} 6. h3 {[%clk 0:03:00.5]} 6... e6 {[%clk
0:02:38.8]} 7. Nf3 {[%clk 0:02:59.9]} 7... Bd6 {[%clk 0:02:38.6]} 8. O-O {[%clk
0:03:00.3]} 8... O-O {[%clk 0:02:38.7]} 9. Qe2 {[%clk 0:02:57.7]} 9... Rb8
{[%clk 0:02:38.4]} 10. Nbd2 {[%clk 0:02:57.5]} 10... a6 {[%clk 0:02:38.2]} 11.
Ne5 {[%clk 0:02:57.1]} 11... Qc7 {[%clk 0:02:37.1]} 12. f4 {[%clk 0:02:55.5]}
12... b5 {[%clk 0:02:37.4]} 13. g4 {[%clk 0:02:51.8]} 13... b4 {[%clk
0:02:37.8]} 14. g5 {[%clk 0:02:51.6]} 14... Ne8 {[%clk 0:02:27.7]} 15. Ndf3
{[%clk 0:02:33.4]} 15... g6 {[%clk 0:02:26.7]} 16. Nh2 {[%clk 0:02:15.5]} 16...
bxc3 {[%clk 0:02:18.5]} 17. bxc3 {[%clk 0:02:15.1]} 17... f6 {[%clk 0:02:10.5]}
18. gxf6 {[%clk 0:02:14]} 18... Nxf6 {[%clk 0:02:09.9]} 19. Nhg4 {[%clk
0:02:14.1]} 19... Nxg4 {[%clk 0:02:07.4]} 20. Qxg4 {[%clk 0:02:12.6]} 20... Bxe5
{[%clk 0:02:06.2]} 21. fxe5 {[%clk 0:02:08]} 21... Rxf1+ {[%clk 0:02:05.5]} 22.
Bxf1 {[%clk 0:02:02]} 22... Bd7 {[%clk 0:02:03.7]} 23. Bd3 {[%clk 0:01:59.5]}
23... Ne7 {[%clk 0:01:58.1]} 24. Bd2 {[%clk 0:01:58]} 24... Rf8 {[%clk 0:01:55]}
25. a4 {[%clk 0:01:48.6]} 25... Nf5 {[%clk 0:01:49.6]} 26. h4 {[%clk 0:01:40.4]}
26... Kh8 {[%clk 0:01:40]} 27. Rc1 {[%clk 0:01:17.3]} 27... Bxa4 {[%clk
0:01:36.5]} 28. Bg5 {[%clk 0:01:16.6]} 28... Bb5 {[%clk 0:01:27.5]} 29. Bb1
{[%clk 0:01:06.6]} 29... h5 {[%clk 0:01:16.4]} 30. Qg2 {[%clk 0:00:59.2]} 30...
Qc4 {[%clk 0:01:14.3]} 31. Bf6+ {[%clk 0:00:55.2]} 31... Kh7 {[%clk 0:01:14.1]}
32. Bxf5 {[%clk 0:00:25.5]} 32... exf5 {[%clk 0:01:15]} 33. Kh2 {[%clk
0:00:22.1]} 33... Re8 {[%clk 0:01:13.1]} 34. Rg1 {[%clk 0:00:20.4]} 34... Qe2
{[%clk 0:01:04.5]} 35. Qxe2 {[%clk 0:00:20.9]} 35... Bxe2 {[%clk 0:01:04.9]} 36.
Rb1 {[%clk 0:00:21.6]} 36... Bb5 {[%clk 0:01:05]} 37. Kg3 {[%clk 0:00:21.8]}
37... Kg8 {[%clk 0:01:04.8]} 38. Kf4 {[%clk 0:00:20.9]} 38... Kf7 {[%clk
0:01:05.7]} 39. Re1 {[%clk 0:00:18.9]} 39... Rc8 {[%clk 0:01:02.7]} 40. Kg5
{[%clk 0:00:18.1]} 40... Ke6 {[%clk 0:00:47.3]} 41. Rc1 {[%clk 0:00:14.4]} 41...
Rg8 {[%clk 0:00:42.5]} 42. Kf4 {[%clk 0:00:12]} 42... a5 {[%clk 0:00:35.9]} 43.
Rb1 {[%clk 0:00:11.4]} 43... Rb8 {[%clk 0:00:36.1]} 44. Kg5 {[%clk 0:00:11.2]}
44... a4 {[%clk 0:00:35.9]} 45. Ra1 {[%clk 0:00:09.4]} 45... Rc8 {[%clk
0:00:34.4]} 46. Ra3 {[%clk 0:00:08.4]} 46... Be8 {[%clk 0:00:31.8]} 47. Kf4
{[%clk 0:00:07]} 47... Rb8 {[%clk 0:00:31.6]} 48. Ke3 {[%clk 0:00:06.5]} 48...
Rb2 {[%clk 0:00:31.3]} 49. Bg5 {[%clk 0:00:05.8]} 49... Bb5 {[%clk 0:00:31.2]}
50. Kf3 {[%clk 0:00:05.6]} 50... Rh2 {[%clk 0:00:25.2]} 51. Ke3 {[%clk
0:00:04.3]} 51... Rh3+ {[%clk 0:00:21.2]} 52. Kd2 {[%clk 0:00:04.5]} 52... Rd3+
{[%clk 0:00:20.6]} 53. Kc2 {[%clk 0:00:04.5]} 53... Rg3 {[%clk 0:00:20]} 54. Ra1
{[%clk 0:00:04.4]} 54... Rg2+ {[%clk 0:00:20.2]} 55. Kc1 {[%clk 0:00:04.2]}
55... f4 {[%clk 0:00:19.9]} 56. Bxf4 {[%clk 0:00:03.1]} 56... Rg4 {[%clk
0:00:17.6]} 57. Bg5 {[%clk 0:00:03.1]} 57... Rg3 {[%clk 0:00:17.5]} 58. Kb2
{[%clk 0:00:02.7]} 58... Rg2+ {[%clk 0:00:17.5]} 59. Ka3 {[%clk 0:00:02.7]}
59... Rc2 {[%clk 0:00:17.3]} 60. Kb4 {[%clk 0:00:02.8]} 60... Rb2+ {[%clk
0:00:17.6]} 61. Kc5 {[%clk 0:00:03.1]} 61... Rb3 {[%clk 0:00:17.2]} 62. Bd2
{[%clk 0:00:01.8]} 62... a3 {[%clk 0:00:16.4]} 63. Kb6 {[%clk 0:00:02]} 63...
Bc4+ {[%clk 0:00:16.5]} 64. Kc5 {[%clk 0:00:02.6]} 64... Rb2 {[%clk 0:00:16.3]}
65. Bc1 {[%clk 0:00:02.9]} 65... Rb3 {[%clk 0:00:15.8]} 66. Rxa3 {[%clk
0:00:02.7]} 66... Rxa3 {[%clk 0:00:15.5]} 67. Bxa3 {[%clk 0:00:03.6]} 67... Ba2
{[%clk 0:00:15.4]} 68. Kc6 {[%clk 0:00:03.4]} 68... Bc4 {[%clk 0:00:16.3]} 69.
Bc1 {[%clk 0:00:03.7]} 69... Ba2 {[%clk 0:00:15.3]} 70. Bg5 {[%clk 0:00:04.2]}
70... Bc4 {[%clk 0:00:16.2]} 71. Kc7 {[%clk 0:00:04.8]} 71... Bb3 {[%clk
0:00:16.6]} 72. Kd8 {[%clk 0:00:05.7]} 72... Bc4 {[%clk 0:00:17.1]} 73. Ke8
{[%clk 0:00:06.3]} 73... Bd3 {[%clk 0:00:16.6]} 74. Kf8 {[%clk 0:00:06.6]} 74...
Be4 {[%clk 0:00:16.4]} 75. Bd2 {[%clk 0:00:06.7]} 75... Bd3 {[%clk 0:00:16.6]}
76. Kg7 {[%clk 0:00:07.3]} 76... Be4 {[%clk 0:00:17.1]} 77. Kh6 {[%clk
0:00:08.2]} 77... Bd3 {[%clk 0:00:17.6]} 78. Kg5 {[%clk 0:00:09.1]} 78... Be4
{[%clk 0:00:18.1]} 79. Be1 {[%clk 0:00:09.6]} 79... Bd3 {[%clk 0:00:18.5]} 80.
Kf4 {[%clk 0:00:10.3]} 80... Be4 {[%clk 0:00:18.4]} 81. Ke3 {[%clk 0:00:10.9]}
81... Bc2 {[%clk 0:00:18.4]} 82. Kd2 {[%clk 0:00:11.1]} 82... Bb3 {[%clk
0:00:18.6]} 83. Bg3 {[%clk 0:00:11.5]} 83... Bc4 {[%clk 0:00:18.7]} 84. Bf4
{[%clk 0:00:12]} 84... Bb3 {[%clk 0:00:19]} 85. Bg5 {[%clk 0:00:12.9]} 85... Bc4
{[%clk 0:00:19.6]} 86. Kc2 {[%clk 0:00:13.4]} 86... Ba2 {[%clk 0:00:19.4]} 87.
Kb2 {[%clk 0:00:13.2]} 87... Bc4 {[%clk 0:00:20.3]} 88. Ka3 {[%clk 0:00:13.7]}
88... Bd3 {[%clk 0:00:19.8]} 89. Kb4 {[%clk 0:00:14.6]} 89... Bc4 {[%clk
0:00:20.5]} 90. Kc5 {[%clk 0:00:14.4]} 90... Bd3 {[%clk 0:00:20.8]} 91. Kc6
{[%clk 0:00:15.3]} 91... Bc4 {[%clk 0:00:21.4]} 92. Kc7 {[%clk 0:00:14.9]} 92...
Bd3 {[%clk 0:00:20.9]} 93. Kd8 {[%clk 0:00:15.8]} 93... Bc4 {[%clk 0:00:21.5]}
94. Ke8 {[%clk 0:00:16.4]} 94... Bd3 {[%clk 0:00:21.9]} 95. Kf8 {[%clk
0:00:17.3]} 95... Bc4 {[%clk 0:00:22.4]} 96. Kg7 {[%clk 0:00:18.2]} 96... Bd3
{[%clk 0:00:23.1]} 97. Bf6 {[%clk 0:00:18.8]} 97... Bc4 {[%clk 0:00:23.5]} 98.
Kxg6 {[%clk 0:00:18.9]} 98... Bd3+ {[%clk 0:00:24.4]} 99. Kxh5 {[%clk
0:00:19.1]} 99... Kf5 {[%clk 0:00:24.8]} 100. Kh6 {[%clk 0:00:17.3]} 100... Bb5
{[%clk 0:00:23]} 101. Kg7 {[%clk 0:00:11.3]} 101... Be8 {[%clk 0:00:23.9]} 102.
Kf8 {[%clk 0:00:11.6]} 102... Bh5 {[%clk 0:00:22.9]} 103. Ke7 {[%clk 0:00:12.3]}
103... Bg4 {[%clk 0:00:19.5]} 104. Kd6 {[%clk 0:00:12.2]} 104... Ke4 {[%clk
0:00:18.6]} 105. e6 {[%clk 0:00:12.6]} 105... Bh5 {[%clk 0:00:17.1]} 106. Kd7
{[%clk 0:00:10.9]} 106... Kf5 {[%clk 0:00:17.3]} 107. Bg5 {[%clk 0:00:10.1]} 1-0

[Event "*** Titled Tuesday Blitz"]
[Site "Chess.com"]
[Date "2020.12.29"]
[Round "11"]
[White "Zhigalko_Sergei"]
[Black "Jospem"]
[Result "1/2-1/2"]
[WhiteElo "2865"]
[BlackElo "2986"]
[TimeControl "180+1"]
[EndTime "12:09:25 PST"]
[Termination "Game drawn by repetition"]

1. e4 {[%clk 0:03:00.9]} 1... e5 {[%clk 0:02:58.7]} 2. Nf3 {[%clk 0:03:01.1]}
2... Nc6 {[%clk 0:02:59.1]} 3. Bc4 {[%clk 0:03:00.1]} 3... Bc5 {[%clk
0:02:58.6]} 4. b4 {[%clk 0:03:00.3]} 4... Bxb4 {[%clk 0:02:56.1]} 5. c3 {[%clk
0:03:00.6]} 5... Be7 {[%clk 0:02:55.5]} 6. d4 {[%clk 0:02:57.7]} 6... Na5 {[%clk
0:02:55.3]} 7. Bd3 {[%clk 0:02:57.9]} 7... d6 {[%clk 0:02:51.1]} 8. dxe5 {[%clk
0:02:56.5]} 8... dxe5 {[%clk 0:02:51.2]} 9. Nxe5 {[%clk 0:02:57.4]} 9... Nf6
{[%clk 0:02:49.3]} 10. O-O {[%clk 0:02:56.8]} 10... O-O {[%clk 0:02:49.2]} 11.
Qc2 {[%clk 0:02:55.2]} 11... c5 {[%clk 0:02:48.2]} 12. Re1 {[%clk 0:02:50.6]}
12... Be6 {[%clk 0:02:42.7]} 13. h3 {[%clk 0:02:40.4]} 13... a6 {[%clk
0:02:33.9]} 14. c4 {[%clk 0:02:17.6]} 14... b5 {[%clk 0:02:25.7]} 15. Bb2 {[%clk
0:02:05.6]} 15... Rb8 {[%clk 0:02:20.6]} 16. Nd2 {[%clk 0:02:04.2]} 16... Nd7
{[%clk 0:01:51.4]} 17. Rad1 {[%clk 0:01:52.1]} 17... Nxe5 {[%clk 0:01:40.6]} 18.
Bxe5 {[%clk 0:01:50.7]} 18... Rb7 {[%clk 0:01:40.2]} 19. Bc3 {[%clk 0:00:51.1]}
19... Rd7 {[%clk 0:01:13.2]} 20. cxb5 {[%clk 0:00:50.3]} 20... c4 {[%clk
0:01:05]} 21. Bxa5 {[%clk 0:00:29.1]} 21... cxd3 {[%clk 0:00:58.4]} 22. Qc3
{[%clk 0:00:27]} 22... Qb8 {[%clk 0:00:42.7]} 23. bxa6 {[%clk 0:00:14.3]} 23...
Rc8 {[%clk 0:00:40.7]} 24. Qa1 {[%clk 0:00:14.7]} 24... Rc2 {[%clk 0:00:36.9]}
25. Bc3 {[%clk 0:00:12.9]} 25... Rxa2 {[%clk 0:00:32.8]} 26. Qb1 {[%clk
0:00:11.9]} 26... Qa7 {[%clk 0:00:32.5]} 27. Re3 {[%clk 0:00:04.4]} 27... Qxa6
{[%clk 0:00:27.1]} 28. Nf3 {[%clk 0:00:03.7]} 28... Qc8 {[%clk 0:00:10.4]} 29.
Rexd3 {[%clk 0:00:03.1]} 29... Rxd3 {[%clk 0:00:10.6]} 30. Rxd3 {[%clk 0:00:03]}
30... Qa8 {[%clk 0:00:06.7]} 31. Rd1 {[%clk 0:00:01.6]} 31... h6 {[%clk
0:00:06.7]} 32. Bd4 {[%clk 0:00:02]} 32... Ra4 {[%clk 0:00:05.8]} 33. Qd3 {[%clk
0:00:02.4]} 33... Bc4 {[%clk 0:00:05.3]} 34. Qc3 {[%clk 0:00:02.9]} 34... f6
{[%clk 0:00:04.5]} 35. Rc1 {[%clk 0:00:02.9]} 35... Be6 {[%clk 0:00:04.3]} 36.
Qe3 {[%clk 0:00:03.4]} 36... Ra3 {[%clk 0:00:04.4]} 37. Qd2 {[%clk 0:00:03.6]}
37... Qxe4 {[%clk 0:00:03.7]} 38. Bc5 {[%clk 0:00:02.9]} 38... Rd3 {[%clk
0:00:03.1]} 39. Qe1 {[%clk 0:00:02.4]} 39... Qxe1+ {[%clk 0:00:02.9]} 40. Nxe1
{[%clk 0:00:03.1]} 40... Rd7 {[%clk 0:00:02.5]} 41. Bxe7 {[%clk 0:00:02.9]}
41... Rxe7 {[%clk 0:00:03.4]} 42. Nf3 {[%clk 0:00:03.4]} 42... Bf7 {[%clk
0:00:04]} 43. Nd4 {[%clk 0:00:03.2]} 43... Rd7 {[%clk 0:00:04.3]} 44. Nf5 {[%clk
0:00:03.5]} 44... Be6 {[%clk 0:00:04.6]} 45. Ne3 {[%clk 0:00:03.8]} 45... g5
{[%clk 0:00:05]} 46. Rd1 {[%clk 0:00:03.9]} 46... Re7 {[%clk 0:00:03.4]} 47. Rc1
{[%clk 0:00:02.8]} 47... Kf7 {[%clk 0:00:03.8]} 48. Rc6 {[%clk 0:00:02.8]} 48...
f5 {[%clk 0:00:03.7]} 49. Rc1 {[%clk 0:00:02]} 49... f4 {[%clk 0:00:02.8]} 50.
Ng4 {[%clk 0:00:02.4]} 50... h5 {[%clk 0:00:02.9]} 51. Ne5+ {[%clk 0:00:02.3]}
51... Kf6 {[%clk 0:00:03.6]} 52. Nf3 {[%clk 0:00:02.9]} 52... g4 {[%clk
0:00:03.3]} 53. hxg4 {[%clk 0:00:03.8]} 53... hxg4 {[%clk 0:00:04.2]} 54. Nd4
{[%clk 0:00:04.4]} 54... Bd5 {[%clk 0:00:03.4]} 55. Rd1 {[%clk 0:00:03.8]} 55...
Re5 {[%clk 0:00:02.5]} 56. Rc1 {[%clk 0:00:03.4]} 56... Re4 {[%clk 0:00:02.7]}
57. Nb5 {[%clk 0:00:03.6]} 57... Rb4 {[%clk 0:00:02.1]} 58. Nc3 {[%clk
0:00:03.6]} 58... Bb7 {[%clk 0:00:01.9]} 59. Ne2 {[%clk 0:00:03.9]} 59... Ke5
{[%clk 0:00:02.2]} 60. Nc3 {[%clk 0:00:02.6]} 60... f3 {[%clk 0:00:02.5]} 61.
Re1+ {[%clk 0:00:02.9]} 61... Kf5 {[%clk 0:00:02.7]} 62. g3 {[%clk 0:00:02.8]}
62... Rc4 {[%clk 0:00:03.3]} 63. Nd1 {[%clk 0:00:03.3]} 63... Rd4 {[%clk
0:00:03.8]} 64. Ne3+ {[%clk 0:00:04.2]} 64... Kg5 {[%clk 0:00:04.4]} 65. Rb1
{[%clk 0:00:05.1]} 65... Be4 {[%clk 0:00:05]} 66. Re1 {[%clk 0:00:04.6]} 66...
Bd3 {[%clk 0:00:05.1]} 67. Nd1 {[%clk 0:00:02.3]} 67... Be2 {[%clk 0:00:05.4]}
68. Ne3 {[%clk 0:00:02.8]} 68... Rb4 {[%clk 0:00:05]} 69. Ra1 {[%clk 0:00:03]}
69... Kf6 {[%clk 0:00:05.3]} 70. Nc2 {[%clk 0:00:03.1]} 70... Rc4 {[%clk
0:00:05.1]} 71. Ne3 {[%clk 0:00:03.8]} 71... Rd4 {[%clk 0:00:05.7]} 72. Nc2
{[%clk 0:00:04.2]} 72... Re4 {[%clk 0:00:05.4]} 73. Ne3 {[%clk 0:00:04.6]} 73...
Kg5 {[%clk 0:00:05.5]} 74. Ra5+ {[%clk 0:00:04.3]} 74... Kg6 {[%clk 0:00:05.8]}
75. Rc5 {[%clk 0:00:04.3]} 75... Rb4 {[%clk 0:00:05.8]} 76. Rc6+ {[%clk
0:00:04.4]} 76... Kf7 {[%clk 0:00:06.1]} 77. Rc1 {[%clk 0:00:05.3]} 77... Ke6
{[%clk 0:00:06.4]} 78. Re1 {[%clk 0:00:05]} 78... Kd7 {[%clk 0:00:06.2]} 79. Rc1
{[%clk 0:00:05.2]} 79... Rd4 {[%clk 0:00:05.9]} 80. Nf5 {[%clk 0:00:05.3]} 80...
Rb4 {[%clk 0:00:04.7]} 81. Re1 {[%clk 0:00:05.7]} 81... Ra4 {[%clk 0:00:02.8]}
82. Rc1 {[%clk 0:00:04.9]} 82... Ke6 {[%clk 0:00:02.7]} 83. Ne3 {[%clk
0:00:05.1]} 83... Rb4 {[%clk 0:00:03.2]} 84. Re1 {[%clk 0:00:04.4]} 84... Kf6
{[%clk 0:00:03.1]} 85. Nc2 {[%clk 0:00:04.5]} 85... Ra4 {[%clk 0:00:02.9]} 86.
Ne3 {[%clk 0:00:05.1]} 86... Kg5 {[%clk 0:00:03.4]} 87. Rc1 {[%clk 0:00:05]}
87... Rb4 {[%clk 0:00:03.6]} 88. Re1 {[%clk 0:00:04.8]} 88... Kg6 {[%clk
0:00:04.1]} 89. Nd5 {[%clk 0:00:05.2]} 89... Ra4 {[%clk 0:00:04]} 90. Nf4+
{[%clk 0:00:05.6]} 90... Kf5 {[%clk 0:00:03.7]} 91. Nxe2 {[%clk 0:00:06.5]}
91... fxe2 {[%clk 0:00:04]} 92. Rxe2 {[%clk 0:00:07.4]} 92... Ra1+ {[%clk
0:00:04.4]} 93. Kg2 {[%clk 0:00:07.9]} 93... Ra5 {[%clk 0:00:05.1]} 94. Rc2
{[%clk 0:00:08]} 94... Kg5 {[%clk 0:00:05.6]} 95. Rc8 {[%clk 0:00:08.1]} 95...
Rb5 {[%clk 0:00:06]} 96. Rg8+ {[%clk 0:00:08.3]} 96... Kf5 {[%clk 0:00:06.4]}
97. Rh8 {[%clk 0:00:09.2]} 97... Kg5 {[%clk 0:00:06.7]} 98. Rh7 {[%clk
0:00:09.7]} 98... Ra5 {[%clk 0:00:06.5]} 99. Rg7+ {[%clk 0:00:10]} 99... Kh5
{[%clk 0:00:06.5]} 100. Rh7+ {[%clk 0:00:10.1]} 100... Kg5 {[%clk 0:00:06.5]}
101. Rh8 {[%clk 0:00:10.8]} 101... Rb5 {[%clk 0:00:06.6]} 102. Rh4 {[%clk
0:00:10.7]} 102... Ra5 {[%clk 0:00:06.9]} 103. Rh7 {[%clk 0:00:10.5]} 103... Rb5
{[%clk 0:00:07.3]} 104. Rd7 {[%clk 0:00:10.5]} 104... Ra5 {[%clk 0:00:07.3]}
105. Rd4 {[%clk 0:00:10.3]} 105... Rb5 {[%clk 0:00:07.6]} 106. Ra4 {[%clk
0:00:09.6]} 106... Rc5 {[%clk 0:00:07.9]} 107. Rb4 {[%clk 0:00:09.7]} 107... Ra5
{[%clk 0:00:08.2]} 108. Rb2 {[%clk 0:00:09.3]} 108... Rc5 {[%clk 0:00:08.3]}
109. Kf1 {[%clk 0:00:07.5]} 109... Re5 {[%clk 0:00:08.2]} 110. Re2 {[%clk
0:00:07.1]} 110... Rc5 {[%clk 0:00:08.7]} 111. Rd2 {[%clk 0:00:07.3]} 111... Re5
{[%clk 0:00:08.3]} 112. Rd3 {[%clk 0:00:07.7]} 112... Rb5 {[%clk 0:00:08.5]}
113. Ke2 {[%clk 0:00:07.4]} 113... Re5+ {[%clk 0:00:09]} 114. Kd2 {[%clk
0:00:07.2]} 114... Ra5 {[%clk 0:00:09.4]} 115. Rd4 {[%clk 0:00:06.7]} 115... Re5
{[%clk 0:00:07.8]} 116. Kd3 {[%clk 0:00:06.8]} 116... Rf5 {[%clk 0:00:06.6]}
117. Ke3 {[%clk 0:00:06.6]} 117... Rf3+ {[%clk 0:00:06.9]} 118. Ke2 {[%clk
0:00:06.4]} 118... Ra3 {[%clk 0:00:07.6]} 119. Rd5+ {[%clk 0:00:06.4]} 119...
Kf6 {[%clk 0:00:07.9]} 120. Rc5 {[%clk 0:00:06.7]} 120... Ra4 {[%clk 0:00:07.8]}
121. Ke3 {[%clk 0:00:06.5]} 121... Ra2 {[%clk 0:00:06.9]} 122. Rb5 {[%clk
0:00:05.5]} 122... Kg6 {[%clk 0:00:07.3]} 123. Rd5 {[%clk 0:00:05.4]} 123... Kf6
{[%clk 0:00:07.7]} 124. Rc5 {[%clk 0:00:05.5]} 124... Kg6 {[%clk 0:00:07.9]}
125. Rd5 {[%clk 0:00:05.4]} 125... Kf6 {[%clk 0:00:08.4]} 126. Rd2 {[%clk
0:00:05.8]} 126... Ra4 {[%clk 0:00:07.8]} 127. Rd5 {[%clk 0:00:03.6]} 127... Ra2
{[%clk 0:00:07.6]} 1/2-1/2